[Event "Titled Tuesday Blitz July 25 Late 2023"]
[White "Veiga, Jose Francisco R P Neves"]
[Black "Awoki, Daniel Teidi"]
[WhiteFideId "1930087"]
[BlackFideId "2100827"]
[WhiteElo "2553"]
[BlackElo "2324"]
[Result "1-0"]
[Round "5"]
[TimeControl "180+2"]
[Date "2023.07.25"]
[WhiteClock "0:01:18"]
[BlackClock "0:00:03"]
[Board "135"]

1. c4 {[%clk 0:02:52]}  e5 {[%clk 0:02:57]} 2. Nc3 {[%clk 0:02:52]}  Nf6 {[%clk 0:02:57]} 3. Nf3 {[%clk 0:02:52]}  Nc6 {[%clk 0:02:56]} 4. e4 {[%clk 0:02:53]}  Bb4 {[%clk 0:02:55]} 5. d3 {[%clk 0:02:52]}  d6 {[%clk 0:02:55]} 6. Be2 {[%clk 0:02:53]}  O-O {[%clk 0:02:55]} 7. O-O {[%clk 0:02:53]}  Bxc3 {[%clk 0:02:55]} 8. bxc3 {[%clk 0:02:53]}  h6 {[%clk 0:02:55]} 9. h3 {[%clk 0:02:53]}  Qe7 {[%clk 0:02:52]} 10. Be3 {[%clk 0:02:53]}  b6 {[%clk 0:02:48]} 11. Nd2 {[%clk 0:02:52]}  a5 {[%clk 0:02:48]} 12. f4 {[%clk 0:02:48]}  exf4 {[%clk 0:02:37]} 13. Bxf4 {[%clk 0:02:49]}  Ne5 {[%clk 0:02:34]} 14. Bh2 {[%clk 0:02:44]}  Ng6 {[%clk 0:02:14]} 15. Nf3 {[%clk 0:02:31]}  Bd7 {[%clk 0:02:03]} 16. Nd4 {[%clk 0:02:30]}  Rae8 {[%clk 0:01:58]} 17. Qd2 {[%clk 0:02:30]}  Nh7 {[%clk 0:01:27]} 18. Bg3 {[%clk 0:01:55]}  Ng5 {[%clk 0:01:10]} 19. h4 {[%clk 0:01:54]}  Ne6 {[%clk 0:00:56]} 20. Nf5 {[%clk 0:01:53]}  Qd8 {[%clk 0:00:56]} 21. d4 {[%clk 0:01:46]}  Ne7 {[%clk 0:00:41]} 22. Rae1 {[%clk 0:01:44]}  Qc8 {[%clk 0:00:21]} 23. Bd3 {[%clk 0:01:39]}  f6 {[%clk 0:00:15]} 24. Nxh6+ {[%clk 0:01:29]}  gxh6 {[%clk 0:00:15]} 25. Qxh6 {[%clk 0:01:30]}  Ng7 {[%clk 0:00:12]} 26. Rxf6 {[%clk 0:01:28]}  Rxf6 {[%clk 0:00:11]} 27. Qxf6 {[%clk 0:01:29]}  Qd8 {[%clk 0:00:09]} 28. e5 {[%clk 0:01:25]}  Rf8 {[%clk 0:00:07]} 29. Qh6 {[%clk 0:01:25]}  dxe5 {[%clk 0:00:06]} 30. Bh7+ {[%clk 0:01:25]}  Kf7 {[%clk 0:00:06]} 31. Bg6+ {[%clk 0:01:26]}  Nxg6 {[%clk 0:00:06]} 32. Rf1+ {[%clk 0:01:25]}  Nf5 {[%clk 0:00:05]} 33. Qh7+ {[%clk 0:01:25]}  Kf6 {[%clk 0:00:03]} 34. dxe5+ {[%clk 0:01:25]}  Nxe5 {[%clk 0:00:04]} 35. h5 {[%clk 0:01:19]}  Qe7 {[%clk 0:00:04]} 36. Bh4+ {[%clk 0:01:19]}  Ke6 {[%clk 0:00:04]} 37. Bxe7 {[%clk 0:01:19]}  Nxe7 {[%clk 0:00:03]} 38. Rxf8 {[%clk 0:01:18]} 1-0


[Site "https://www.chess.com"]

[Event "Titled Tuesday Blitz July 25 Late 2023"]
[White "Suvorov, Alexander"]
[Black "Fajdetic, Hrvoje"]
[WhiteFideId "12977063"]
[BlackFideId "14501945"]
[WhiteElo "2518"]
[BlackElo "2319"]
[Result "0-1"]
[Round "5"]
[TimeControl "180+2"]
[Date "2023.07.25"]
[WhiteClock "0:00:09"]
[BlackClock "0:00:45"]
[Board "136"]

1. d4 {[%clk 0:02:55]}  d5 {[%clk 0:02:56]} 2. Nf3 {[%clk 0:02:55]}  e6 {[%clk 0:02:57]} 3. g3 {[%clk 0:02:54]}  f5 {[%clk 0:02:57]} 4. Bg2 {[%clk 0:02:53]}  Nf6 {[%clk 0:02:58]} 5. O-O {[%clk 0:02:52]}  Bd6 {[%clk 0:02:57]} 6. c4 {[%clk 0:02:53]}  c6 {[%clk 0:02:58]} 7. Bf4 {[%clk 0:02:46]}  O-O {[%clk 0:02:57]} 8. Bxd6 {[%clk 0:02:46]}  Qxd6 {[%clk 0:02:58]} 9. Nc3 {[%clk 0:02:44]}  b6 {[%clk 0:02:58]} 10. Rc1 {[%clk 0:02:40]}  Ne4 {[%clk 0:02:57]} 11. cxd5 {[%clk 0:02:35]}  exd5 {[%clk 0:02:57]} 12. e3 {[%clk 0:02:30]}  Nd7 {[%clk 0:02:55]} 13. Ne2 {[%clk 0:02:27]}  Ba6 {[%clk 0:02:55]} 14. Re1 {[%clk 0:02:27]}  Bxe2 {[%clk 0:02:54]} 15. Qxe2 {[%clk 0:02:27]}  Rac8 {[%clk 0:02:52]} 16. Nd2 {[%clk 0:02:24]}  c5 {[%clk 0:02:51]} 17. dxc5 {[%clk 0:02:22]}  bxc5 {[%clk 0:02:50]} 18. b3 {[%clk 0:02:20]}  Ne5 {[%clk 0:02:46]} 19. Red1 {[%clk 0:02:19]}  Qe6 {[%clk 0:02:43]} 20. Nf3 {[%clk 0:02:10]}  Ng4 {[%clk 0:02:37]} 21. Rf1 {[%clk 0:02:06]}  Rfd8 {[%clk 0:01:59]} 22. h3 {[%clk 0:02:05]}  Ne5 {[%clk 0:01:59]} 23. Rfd1 {[%clk 0:02:04]}  h6 {[%clk 0:01:55]} 24. Ne1 {[%clk 0:01:55]}  c4 {[%clk 0:01:43]} 25. bxc4 {[%clk 0:01:35]}  dxc4 {[%clk 0:01:41]} 26. Nc2 {[%clk 0:01:35]}  Nd3 {[%clk 0:01:38]} 27. Nd4 {[%clk 0:01:21]}  Nxc1 {[%clk 0:01:37]} 28. Rxc1 {[%clk 0:01:20]}  Nxg3 {[%clk 0:01:31]} 29. Qd1 {[%clk 0:00:46]}  Qe5 {[%clk 0:01:10]} 30. Rc2 {[%clk 0:00:28]}  Ne4 {[%clk 0:01:04]} 31. Qc1 {[%clk 0:00:26]}  Rxd4 {[%clk 0:00:57]} 32. exd4 {[%clk 0:00:27]}  Qxd4 {[%clk 0:00:57]} 33. Bf1 {[%clk 0:00:27]}  c3 {[%clk 0:00:54]} 34. Qf4 {[%clk 0:00:27]}  Rc5 {[%clk 0:00:51]} 35. h4 {[%clk 0:00:18]}  Qd1 {[%clk 0:00:47]} 36. Rc1 {[%clk 0:00:17]}  Qd2 {[%clk 0:00:46]} 37. Qb8+ {[%clk 0:00:09]}  Kh7 {[%clk 0:00:45]} 0-1


[Site "https://www.chess.com"]

[Event "Titled Tuesday Blitz July 25 Late 2023"]
[White "Bilan, Danila"]
[Black "Wang, Alexander J"]
[WhiteFideId "24161918"]
[BlackFideId "30955270"]
[WhiteElo "2510"]
[BlackElo "2301"]
[Result "1-0"]
[Round "5"]
[TimeControl "180+2"]
[Date "2023.07.25"]
[WhiteClock "0:00:18"]
[BlackClock "0:01:05"]
[Board "138"]

1. d4 {[%clk 0:03:00]}  d5 {[%clk 0:02:54]} 2. Nf3 {[%clk 0:03:01]}  e6 {[%clk 0:02:53]} 3. c4 {[%clk 0:03:02]}  c5 {[%clk 0:02:53]} 4. cxd5 {[%clk 0:03:02]}  exd5 {[%clk 0:02:54]} 5. Nc3 {[%clk 0:03:01]}  Nc6 {[%clk 0:02:54]} 6. g3 {[%clk 0:03:01]}  Nf6 {[%clk 0:02:53]} 7. Bg2 {[%clk 0:03:01]}  cxd4 {[%clk 0:02:52]} 8. Nxd4 {[%clk 0:03:01]}  Bc5 {[%clk 0:02:53]} 9. Nb3 {[%clk 0:03:00]}  Bb6 {[%clk 0:02:54]} 10. O-O {[%clk 0:02:57]}  d4 {[%clk 0:02:52]} 11. Na4 {[%clk 0:02:52]}  O-O {[%clk 0:02:52]} 12. Nxb6 {[%clk 0:02:49]}  axb6 {[%clk 0:02:52]} 13. Bxc6 {[%clk 0:02:25]}  bxc6 {[%clk 0:02:53]} 14. Qxd4 {[%clk 0:02:24]}  Qc7 {[%clk 0:02:44]} 15. Bf4 {[%clk 0:02:19]}  Qb7 {[%clk 0:02:07]} 16. Be5 {[%clk 0:02:11]}  Bh3 {[%clk 0:02:06]} 17. f3 {[%clk 0:01:39]}  Bxf1 {[%clk 0:01:47]} 18. Bxf6 {[%clk 0:01:08]}  gxf6 {[%clk 0:01:47]} 19. Rxf1 {[%clk 0:01:00]}  Rxa2 {[%clk 0:01:45]} 20. Qxf6 {[%clk 0:00:58]}  Qa6 {[%clk 0:01:37]} 21. Nd4 {[%clk 0:00:55]}  Ra5 {[%clk 0:01:31]} 22. Nxc6 {[%clk 0:00:49]}  Re8 {[%clk 0:01:25]} 23. Nxa5 {[%clk 0:00:27]}  Qxa5 {[%clk 0:01:24]} 24. e4 {[%clk 0:00:25]}  Qc5+ {[%clk 0:01:21]} 25. Kg2 {[%clk 0:00:25]}  Qc2+ {[%clk 0:01:19]} 26. Rf2 {[%clk 0:00:25]}  Qc5 {[%clk 0:01:17]} 27. h4 {[%clk 0:00:25]}  Re6 {[%clk 0:01:16]} 28. Qg5+ {[%clk 0:00:20]}  Qxg5 {[%clk 0:01:16]} 29. hxg5 {[%clk 0:00:21]}  Rd6 {[%clk 0:01:14]} 30. Rc2 {[%clk 0:00:21]}  Kg7 {[%clk 0:01:13]} 31. Kf2 {[%clk 0:00:19]}  Rd4 {[%clk 0:01:13]} 32. Ke3 {[%clk 0:00:19]}  Rb4 {[%clk 0:01:12]} 33. f4 {[%clk 0:00:20]}  Rb3+ {[%clk 0:01:12]} 34. Kf2 {[%clk 0:00:18]}  Kg6 {[%clk 0:01:12]} 35. Kg2 {[%clk 0:00:18]}  Kh5 {[%clk 0:01:10]} 36. Kh3 {[%clk 0:00:19]}  Rd3 {[%clk 0:01:05]} 37. Rc6 {[%clk 0:00:18]} 1-0


[Site "https://www.chess.com"]

[Event "Titled Tuesday Blitz July 25 Late 2023"]
[White "Vifleemskaia, Svetlana"]
[Black "whiteglovethief"]
[WhiteFideId "4129490"]
[WhiteElo "2311"]
[BlackElo "2477"]
[Result "1-0"]
[Round "5"]
[TimeControl "180+2"]
[Date "2023.07.25"]
[WhiteClock "0:01:51"]
[BlackClock "0:02:06"]
[Board "140"]

1. d4 {[%clk 0:03:00]}  Nf6 {[%clk 0:02:59]} 2. c4 {[%clk 0:02:59]}  e6 {[%clk 0:02:59]} 3. Nc3 {[%clk 0:02:59]}  Bb4 {[%clk 0:02:58]} 4. e3 {[%clk 0:02:59]}  c5 {[%clk 0:02:57]} 5. Ne2 {[%clk 0:03:00]}  cxd4 {[%clk 0:02:57]} 6. exd4 {[%clk 0:03:00]}  d5 {[%clk 0:02:57]} 7. a3 {[%clk 0:02:59]}  Be7 {[%clk 0:02:56]} 8. c5 {[%clk 0:02:54]}  a5 {[%clk 0:02:55]} 9. Bf4 {[%clk 0:02:46]}  O-O {[%clk 0:02:52]} 10. b4 {[%clk 0:02:44]}  axb4 {[%clk 0:02:50]} 11. axb4 {[%clk 0:02:44]}  Rxa1 {[%clk 0:02:50]} 12. Qxa1 {[%clk 0:02:45]}  b6 {[%clk 0:02:47]} 13. Bxb8 {[%clk 0:02:37]}  bxc5 {[%clk 0:02:45]} 14. bxc5 {[%clk 0:02:31]}  Ne4 {[%clk 0:02:39]} 15. f3 {[%clk 0:02:18]}  Bh4+ {[%clk 0:02:19]} 16. g3 {[%clk 0:02:16]}  Ng5 {[%clk 0:02:19]} 17. Bg2 {[%clk 0:02:09]}  e5 {[%clk 0:02:20]} 18. gxh4 {[%clk 0:02:04]}  Nh3 {[%clk 0:02:18]} 19. Bxe5 {[%clk 0:01:59]}  Qxh4+ {[%clk 0:02:12]} 20. Bg3 {[%clk 0:01:58]}  Qe7 {[%clk 0:02:12]} 21. Bxh3 {[%clk 0:01:54]}  Bxh3 {[%clk 0:02:13]} 22. Kf2 {[%clk 0:01:55]}  Re8 {[%clk 0:02:06]} 23. Qc1 {[%clk 0:01:51]} 1-0


[Site "https://www.chess.com"]

[Event "Titled Tuesday Blitz July 25 Late 2023"]
[White "Ocido, Michael"]
[Black "Broca Jimenez, Fernando"]
[WhiteFideId "115201920"]
[BlackFideId "5104742"]
[WhiteElo "2449"]
[BlackElo "2278"]
[Result "1-0"]
[Round "5"]
[TimeControl "180+2"]
[Date "2023.07.25"]
[WhiteClock "0:00:10"]
[BlackClock "0:00:00"]
[Board "143"]

1. d4 {[%clk 0:02:57]}  e6 {[%clk 0:02:52]} 2. c4 {[%clk 0:02:52]}  Nf6 {[%clk 0:02:52]} 3. Nf3 {[%clk 0:02:49]}  b6 {[%clk 0:02:51]} 4. g3 {[%clk 0:02:43]}  Bb7 {[%clk 0:02:51]} 5. Bg2 {[%clk 0:02:39]}  Be7 {[%clk 0:02:51]} 6. d5 {[%clk 0:02:33]}  exd5 {[%clk 0:02:34]} 7. Nh4 {[%clk 0:02:29]}  O-O {[%clk 0:02:26]} 8. cxd5 {[%clk 0:02:15]}  Bb4+ {[%clk 0:01:59]} 9. Nc3 {[%clk 0:02:12]}  c5 {[%clk 0:01:55]} 10. O-O {[%clk 0:01:59]}  Bxc3 {[%clk 0:01:43]} 11. bxc3 {[%clk 0:01:58]}  d6 {[%clk 0:01:43]} 12. Nf5 {[%clk 0:01:47]}  Bc8 {[%clk 0:01:39]} 13. Ne3 {[%clk 0:01:08]}  Nbd7 {[%clk 0:01:28]} 14. Nc4 {[%clk 0:01:07]}  Ne5 {[%clk 0:01:14]} 15. Nxe5 {[%clk 0:01:04]}  dxe5 {[%clk 0:01:14]} 16. e4 {[%clk 0:00:59]}  Re8 {[%clk 0:01:00]} 17. a4 {[%clk 0:00:58]}  Ba6 {[%clk 0:00:55]} 18. Re1 {[%clk 0:00:58]}  Qd6 {[%clk 0:00:53]} 19. h3 {[%clk 0:00:55]}  Bc4 {[%clk 0:00:32]} 20. Be3 {[%clk 0:00:43]}  a6 {[%clk 0:00:30]} 21. f4 {[%clk 0:00:28]}  Nd7 {[%clk 0:00:24]} 22. Qd2 {[%clk 0:00:20]}  f6 {[%clk 0:00:22]} 23. h4 {[%clk 0:00:19]}  exf4 {[%clk 0:00:20]} 24. gxf4 {[%clk 0:00:18]}  Re7 {[%clk 0:00:19]} 25. Bf2 {[%clk 0:00:18]}  Rae8 {[%clk 0:00:15]} 26. Bg3 {[%clk 0:00:18]}  a5 {[%clk 0:00:08]} 27. Re3 {[%clk 0:00:18]}  b5 {[%clk 0:00:08]} 28. axb5 {[%clk 0:00:18]}  Bxb5 {[%clk 0:00:09]} 29. Rxa5 {[%clk 0:00:18]}  Qb6 {[%clk 0:00:10]} 30. Ra1 {[%clk 0:00:18]}  Rc8 {[%clk 0:00:09]} 31. Rae1 {[%clk 0:00:18]}  Qc7 {[%clk 0:00:09]} 32. e5 {[%clk 0:00:17]}  fxe5 {[%clk 0:00:09]} 33. d6 {[%clk 0:00:17]}  Qd8 {[%clk 0:00:06]} 34. dxe7 {[%clk 0:00:17]}  Qxe7 {[%clk 0:00:07]} 35. fxe5 {[%clk 0:00:16]}  Nf8 {[%clk 0:00:07]} 36. e6 {[%clk 0:00:16]}  Rd8 {[%clk 0:00:06]} 37. Qf2 {[%clk 0:00:16]}  c4 {[%clk 0:00:06]} 38. Qf7+ {[%clk 0:00:16]}  Qxf7 {[%clk 0:00:07]} 39. exf7+ {[%clk 0:00:17]}  Kxf7 {[%clk 0:00:07]} 40. Re7+ {[%clk 0:00:17]}  Kf6 {[%clk 0:00:05]} 41. h5 {[%clk 0:00:14]}  g6 {[%clk 0:00:05]} 42. hxg6 {[%clk 0:00:14]}  Nxg6 {[%clk 0:00:06]} 43. R7e6+ {[%clk 0:00:12]}  Kf7 {[%clk 0:00:05]} 44. Rb6 {[%clk 0:00:12]}  Bd7 {[%clk 0:00:03]} 45. Rb7 {[%clk 0:00:11]}  Kf6 {[%clk 0:00:02]} 46. Rf1+ {[%clk 0:00:10]}  Kg5 {[%clk 0:00:00]} 47. Rc7 {[%clk 0:00:10]} 1-0


[Site "https://www.chess.com"]

[Event "Titled Tuesday Blitz July 25 Late 2023"]
[White "Clawitter, Craig"]
[Black "ExchangeAB"]
[WhiteFideId "2023105"]
[WhiteElo "2277"]
[BlackElo "2443"]
[Result "1/2-1/2"]
[Round "5"]
[TimeControl "180+2"]
[Date "2023.07.25"]
[WhiteClock "0:00:20"]
[BlackClock "0:00:55"]
[Board "144"]

1. e4 {[%clk 0:03:00]}  c6 {[%clk 0:03:00]} 2. d4 {[%clk 0:02:59]}  d5 {[%clk 0:03:01]} 3. e5 {[%clk 0:03:00]}  Bf5 {[%clk 0:03:01]} 4. Nf3 {[%clk 0:03:00]}  e6 {[%clk 0:03:01]} 5. Be2 {[%clk 0:03:01]}  Ne7 {[%clk 0:03:01]} 6. Nbd2 {[%clk 0:03:01]}  h6 {[%clk 0:03:01]} 7. Nb3 {[%clk 0:03:00]}  Nd7 {[%clk 0:03:01]} 8. O-O {[%clk 0:02:59]}  g5 {[%clk 0:02:59]} 9. Ne1 {[%clk 0:02:55]}  Qc7 {[%clk 0:02:57]} 10. Be3 {[%clk 0:02:47]}  b6 {[%clk 0:02:42]} 11. a4 {[%clk 0:02:46]}  c5 {[%clk 0:02:42]} 12. a5 {[%clk 0:02:45]}  c4 {[%clk 0:02:36]} 13. axb6 {[%clk 0:02:33]}  Qb7 {[%clk 0:02:18]} 14. Nc5 {[%clk 0:02:24]}  Qxb6 {[%clk 0:01:54]} 15. Nxd7 {[%clk 0:02:16]}  Kxd7 {[%clk 0:01:55]} 16. b3 {[%clk 0:02:14]}  cxb3 {[%clk 0:01:51]} 17. cxb3 {[%clk 0:02:14]}  Nc6 {[%clk 0:01:50]} 18. Ra6 {[%clk 0:02:07]}  Qb7 {[%clk 0:01:47]} 19. Nd3 {[%clk 0:01:50]}  Bxd3 {[%clk 0:01:43]} 20. Qxd3 {[%clk 0:01:51]}  Nb4 {[%clk 0:01:34]} 21. Qb5+ {[%clk 0:01:50]}  Qxb5 {[%clk 0:01:31]} 22. Bxb5+ {[%clk 0:01:51]}  Kc7 {[%clk 0:01:29]} 23. Rc1+ {[%clk 0:01:41]}  Kb7 {[%clk 0:01:29]} 24. Ra4 {[%clk 0:01:37]}  Be7 {[%clk 0:01:17]} 25. Bd2 {[%clk 0:01:31]}  a5 {[%clk 0:01:09]} 26. Bxb4 {[%clk 0:01:27]}  Bxb4 {[%clk 0:01:08]} 27. Bc6+ {[%clk 0:01:27]}  Kb6 {[%clk 0:01:06]} 28. Bxa8 {[%clk 0:01:23]}  Rxa8 {[%clk 0:01:07]} 29. Ra2 {[%clk 0:01:13]}  Kb5 {[%clk 0:00:58]} 30. Rc7 {[%clk 0:01:07]}  Rf8 {[%clk 0:00:58]} 31. Rb7+ {[%clk 0:00:54]}  Kc6 {[%clk 0:00:56]} 32. Ra7 {[%clk 0:00:51]}  Kb6 {[%clk 0:00:57]} 33. Rd7 {[%clk 0:00:41]}  Kc6 {[%clk 0:00:57]} 34. Ra7 {[%clk 0:00:20]}  Kb6 {[%clk 0:00:55]} 35. Rd7 {[%clk 0:00:20]}  Kc6 {[%clk 0:00:55]} 36. Ra7 {[%clk 0:00:20]} 1/2-1/2


[Site "https://www.chess.com"]

[Event "Titled Tuesday Blitz July 25 Late 2023"]
[White "Rangel, Daniel"]
[Black "Thiel, Thomas"]
[WhiteFideId "2124475"]
[BlackFideId "4615964"]
[WhiteElo "2433"]
[BlackElo "2269"]
[Result "1-0"]
[Round "5"]
[TimeControl "180+2"]
[Date "2023.07.25"]
[WhiteClock "0:00:08"]
[BlackClock "0:00:13"]
[Board "146"]

1. e4 {[%clk 0:03:00]}  d5 {[%clk 0:02:59]} 2. exd5 {[%clk 0:02:58]}  Nf6 {[%clk 0:02:59]} 3. Nc3 {[%clk 0:02:59]}  Nxd5 {[%clk 0:02:58]} 4. Nf3 {[%clk 0:02:58]}  g6 {[%clk 0:02:56]} 5. g3 {[%clk 0:02:58]}  Bg7 {[%clk 0:02:56]} 6. Bg2 {[%clk 0:02:59]}  O-O {[%clk 0:02:52]} 7. O-O {[%clk 0:02:59]}  Nc6 {[%clk 0:02:47]} 8. Re1 {[%clk 0:02:57]}  Nb6 {[%clk 0:02:40]} 9. d3 {[%clk 0:02:55]}  Re8 {[%clk 0:02:32]} 10. Bg5 {[%clk 0:02:53]}  h6 {[%clk 0:02:30]} 11. Be3 {[%clk 0:02:42]}  e5 {[%clk 0:02:29]} 12. a4 {[%clk 0:02:36]}  Nd4 {[%clk 0:02:18]} 13. Nb5 {[%clk 0:02:28]}  c6 {[%clk 0:02:13]} 14. Nbxd4 {[%clk 0:02:21]}  exd4 {[%clk 0:02:14]} 15. Bd2 {[%clk 0:02:20]}  Nd5 {[%clk 0:02:11]} 16. a5 {[%clk 0:02:15]}  a6 {[%clk 0:02:09]} 17. h3 {[%clk 0:02:12]}  Be6 {[%clk 0:02:01]} 18. Ne5 {[%clk 0:02:08]}  Ne3 {[%clk 0:01:45]} 19. Nxc6 {[%clk 0:01:27]}  Nxd1 {[%clk 0:01:40]} 20. Nxd8 {[%clk 0:01:26]}  Nxb2 {[%clk 0:01:33]} 21. Nxe6 {[%clk 0:01:23]}  Rxe6 {[%clk 0:01:32]} 22. Rxe6 {[%clk 0:01:18]}  fxe6 {[%clk 0:01:33]} 23. Bxb7 {[%clk 0:01:17]}  Ra7 {[%clk 0:01:27]} 24. Be4 {[%clk 0:01:06]}  Rc7 {[%clk 0:01:18]} 25. Bc1 {[%clk 0:00:41]}  Rxc2 {[%clk 0:01:15]} 26. Bxb2 {[%clk 0:00:40]}  Rxb2 {[%clk 0:01:15]} 27. Bxg6 {[%clk 0:00:38]}  Bf8 {[%clk 0:01:14]} 28. Re1 {[%clk 0:00:30]}  Ra2 {[%clk 0:00:59]} 29. Rxe6 {[%clk 0:00:25]}  Rxa5 {[%clk 0:00:58]} 30. Be4 {[%clk 0:00:24]}  Kf7 {[%clk 0:00:56]} 31. Rb6 {[%clk 0:00:20]}  Ra1+ {[%clk 0:00:48]} 32. Kg2 {[%clk 0:00:20]}  a5 {[%clk 0:00:48]} 33. Ra6 {[%clk 0:00:19]}  a4 {[%clk 0:00:48]} 34. f4 {[%clk 0:00:19]}  a3 {[%clk 0:00:48]} 35. Kf3 {[%clk 0:00:18]}  h5 {[%clk 0:00:45]} 36. g4 {[%clk 0:00:16]}  h4 {[%clk 0:00:43]} 37. g5 {[%clk 0:00:16]}  a2 {[%clk 0:00:43]} 38. Rxa2 {[%clk 0:00:13]}  Rxa2 {[%clk 0:00:40]} 39. Bd5+ {[%clk 0:00:14]}  Kg6 {[%clk 0:00:40]} 40. Bxa2 {[%clk 0:00:14]}  Kf5 {[%clk 0:00:34]} 41. Bd5 {[%clk 0:00:11]}  Bd6 {[%clk 0:00:34]} 42. Be4+ {[%clk 0:00:11]}  Ke6 {[%clk 0:00:34]} 43. Kg4 {[%clk 0:00:11]}  Kf7 {[%clk 0:00:33]} 44. f5 {[%clk 0:00:07]}  Bg3 {[%clk 0:00:32]} 45. Bd5+ {[%clk 0:00:08]}  Kf8 {[%clk 0:00:28]} 46. f6 {[%clk 0:00:08]}  Be5 {[%clk 0:00:13]} 47. Kf5 {[%clk 0:00:08]} 1-0


[Site "https://www.chess.com"]

[Event "Titled Tuesday Blitz July 25 Late 2023"]
[White "Doluhanova, Evgeniya"]
[Black "Reprintsev, Alexander"]
[WhiteFideId "14112035"]
[BlackFideId "14100541"]
[WhiteElo "2257"]
[BlackElo "2421"]
[Result "1-0"]
[Round "5"]
[TimeControl "180+2"]
[Date "2023.07.25"]
[WhiteClock "0:00:38"]
[BlackClock "0:00:44"]
[Board "147"]

1. e4 {[%clk 0:02:54]}  d5 {[%clk 0:02:51]} 2. exd5 {[%clk 0:02:48]}  Qxd5 {[%clk 0:02:51]} 3. d4 {[%clk 0:02:48]}  Nc6 {[%clk 0:02:50]} 4. Nf3 {[%clk 0:02:48]}  Bg4 {[%clk 0:02:49]} 5. Be3 {[%clk 0:02:48]}  Bxf3 {[%clk 0:02:48]} 6. gxf3 {[%clk 0:02:48]}  e5 {[%clk 0:02:46]} 7. c4 {[%clk 0:02:41]}  Qa5+ {[%clk 0:02:44]} 8. Bd2 {[%clk 0:02:37]}  Bb4 {[%clk 0:02:43]} 9. d5 {[%clk 0:02:36]}  Nd4 {[%clk 0:02:42]} 10. Nc3 {[%clk 0:02:32]}  c5 {[%clk 0:02:35]} 11. Bd3 {[%clk 0:02:28]}  Ne7 {[%clk 0:02:26]} 12. a3 {[%clk 0:02:23]}  Bxc3 {[%clk 0:02:26]} 13. bxc3 {[%clk 0:02:10]}  Ndf5 {[%clk 0:02:25]} 14. Qc2 {[%clk 0:02:04]}  Nd6 {[%clk 0:02:20]} 15. Rg1 {[%clk 0:01:54]}  g6 {[%clk 0:02:19]} 16. Bh6 {[%clk 0:01:50]}  O-O-O {[%clk 0:02:16]} 17. Kf1 {[%clk 0:01:42]}  f6 {[%clk 0:02:12]} 18. Bg7 {[%clk 0:01:38]}  Rhf8 {[%clk 0:02:06]} 19. Bxf8 {[%clk 0:01:36]}  Rxf8 {[%clk 0:02:07]} 20. a4 {[%clk 0:01:33]}  b6 {[%clk 0:01:59]} 21. Rb1 {[%clk 0:01:29]}  Kc7 {[%clk 0:01:54]} 22. Kg2 {[%clk 0:01:25]}  Nef5 {[%clk 0:01:43]} 23. Kh1 {[%clk 0:01:16]}  Qa6 {[%clk 0:01:32]} 24. a5 {[%clk 0:01:11]}  bxa5 {[%clk 0:01:23]} 25. Qa4 {[%clk 0:01:09]}  Ne7 {[%clk 0:01:16]} 26. Rb2 {[%clk 0:01:05]}  Ndc8 {[%clk 0:01:09]} 27. Rb5 {[%clk 0:00:59]}  Nb6 {[%clk 0:00:58]} 28. Rxc5+ {[%clk 0:00:58]}  Kb8 {[%clk 0:00:56]} 29. Rb1 {[%clk 0:00:57]}  Ka8 {[%clk 0:00:50]} 30. Qa3 {[%clk 0:00:56]}  Rb8 {[%clk 0:00:48]} 31. Rxa5 {[%clk 0:00:49]}  Qb7 {[%clk 0:00:48]} 32. c5 {[%clk 0:00:43]}  Nbxd5 {[%clk 0:00:48]} 33. Rxb7 {[%clk 0:00:40]}  Rxb7 {[%clk 0:00:44]} 34. Be4 {[%clk 0:00:38]} 1-0


[Site "https://www.chess.com"]